[Event "Early-Titled-Tuesday-Blitz-March-19-2024"]
[Site "Chess.com"]
[Date "2024.03.19"]
[Round "4"]
[White "FaustinoOro"]
[Black "chess_blitz00"]
[Result "1-0"]
[WhiteElo "2891"]
[BlackElo "2468"]
[TimeControl "180+1"]
[EndTime "8:40:22 PDT"]
[Termination "FaustinoOro won on time"]

1. e4 {[%clk 0:03:00.9]} 1... d6 {[%clk 0:03:00.4]} 2. d4 {[%clk 0:03:00.9]}
2... Nf6 {[%clk 0:03:00.7]} 3. Nc3 {[%clk 0:03:01.5]} 3... e5 {[%clk 0:03:01.4]}
4. Nf3 {[%clk 0:03:00]} 4... Nbd7 {[%clk 0:03:01]} 5. Bc4 {[%clk 0:03:00.2]}
5... Be7 {[%clk 0:03:01.5]} 6. O-O {[%clk 0:02:59.7]} 6... O-O {[%clk
0:03:00.5]} 7. Re1 {[%clk 0:03:00]} 7... c6 {[%clk 0:02:55]} 8. a4 {[%clk
0:02:59.5]} 8... Re8 {[%clk 0:02:51]} 9. a5 {[%clk 0:02:52.4]} 9... h6 {[%clk
0:02:50.6]} 10. h3 {[%clk 0:02:51.8]} 10... Qc7 {[%clk 0:02:48.4]} 11. Be3
{[%clk 0:02:46.2]} 11... Nf8 {[%clk 0:02:43.2]} 12. Qd2 {[%clk 0:02:39.6]} 12...
Be6 {[%clk 0:02:32.9]} 13. Bxe6 {[%clk 0:02:19]} 13... Nxe6 {[%clk 0:02:32.6]}
14. a6 {[%clk 0:02:19.6]} 14... b6 {[%clk 0:01:51.8]} 15. Rad1 {[%clk
0:02:06.7]} 15... Bf8 {[%clk 0:01:45.2]} 16. Qd3 {[%clk 0:01:39.3]} 16... exd4
{[%clk 0:01:38.8]} 17. Bxd4 {[%clk 0:01:38.8]} 17... Nc5 {[%clk 0:01:24.2]} 18.
Bxc5 {[%clk 0:01:27.2]} 18... bxc5 {[%clk 0:01:19.2]} 19. b3 {[%clk 0:01:23]}
19... Rad8 {[%clk 0:01:12]} 20. Qc4 {[%clk 0:01:15.7]} 20... Nd7 {[%clk
0:01:02.8]} 21. Na4 {[%clk 0:01:03.7]} 21... Nb6 {[%clk 0:00:45.3]} 22. Nxb6
{[%clk 0:01:03]} 22... axb6 {[%clk 0:00:30.1]} 23. Ra1 {[%clk 0:00:56.9]} 23...
b5 {[%clk 0:00:30.2]} 24. Qd3 {[%clk 0:00:56.8]} 24... Qb6 {[%clk 0:00:29]} 25.
c4 {[%clk 0:00:55.7]} 25... Ra8 {[%clk 0:00:25.9]} 26. e5 {[%clk 0:00:47.5]}
26... dxe5 {[%clk 0:00:20.9]} 27. Nxe5 {[%clk 0:00:44.9]} 27... Rxa6 {[%clk
0:00:16.4]} 28. Qf5 {[%clk 0:00:32.9]} 28... Rxa1 {[%clk 0:00:14.8]} 29. Qxf7+
{[%clk 0:00:25.3]} 29... Kh7 {[%clk 0:00:15.1]} 30. Qf5+ {[%clk 0:00:22.2]}
30... Kg8 {[%clk 0:00:12.1]} 31. Rxa1 {[%clk 0:00:22]} 31... Qc7 {[%clk
0:00:12.4]} 32. Nf3 {[%clk 0:00:15.8]} 32... Qf7 {[%clk 0:00:10.8]} 33. Qxf7+
{[%clk 0:00:13.3]} 33... Kxf7 {[%clk 0:00:08.5]} 34. Ra6 {[%clk 0:00:13.4]}
34... Re6 {[%clk 0:00:08.2]} 35. Rxc6 {[%clk 0:00:07.9]} 35... Rxc6 {[%clk
0:00:05]} 36. Ne5+ {[%clk 0:00:08.1]} 36... Ke6 {[%clk 0:00:05.8]} 37. Nxc6
{[%clk 0:00:09]} 37... b4 {[%clk 0:00:03.9]} 38. Kf1 {[%clk 0:00:08]} 38... Bd6
{[%clk 0:00:04.1]} 39. Ke2 {[%clk 0:00:05]} 39... Bc7 {[%clk 0:00:03.3]} 40. Kd3
{[%clk 0:00:03.2]} 40... Kd6 {[%clk 0:00:02.1]} 41. Na7 {[%clk 0:00:03.7]} 41...
Bb6 {[%clk 0:00:02]} 42. Nc8+ {[%clk 0:00:03.7]} 42... Kc7 {[%clk 0:00:02.1]}
43. Nxb6 {[%clk 0:00:04.6]} 43... Kxb6 {[%clk 0:00:03]} 44. Ke4 {[%clk
0:00:05.3]} 1-0

[Event "Early-Titled-Tuesday-Blitz-March-19-2024"]
[Site "Chess.com"]
[Date "2024.03.19"]
[Round "4"]
[White "LikeWater"]
[Black "Al_Shima"]
[Result "0-1"]
[WhiteElo "2650"]
[BlackElo "2459"]
[TimeControl "180+1"]
[EndTime "8:40:22 PDT"]
[Termination "Al_Shima won by checkmate"]

1. e4 {[%clk 0:02:52.4]} 1... c6 {[%clk 0:03:00.1]} 2. d4 {[%clk 0:02:52.3]}
2... d5 {[%clk 0:03:00.7]} 3. e5 {[%clk 0:02:52.9]} 3... c5 {[%clk 0:03:01.1]}
4. Nf3 {[%clk 0:02:52.5]} 4... Nc6 {[%clk 0:03:01.1]} 5. dxc5 {[%clk 0:02:48.3]}
5... Bg4 {[%clk 0:03:00.6]} 6. c3 {[%clk 0:02:47]} 6... e6 {[%clk 0:03:00.6]} 7.
b4 {[%clk 0:02:42.8]} 7... Nge7 {[%clk 0:02:40.8]} 8. h3 {[%clk 0:02:28.9]} 8...
Bh5 {[%clk 0:02:20.6]} 9. g4 {[%clk 0:02:27.3]} 9... Bg6 {[%clk 0:02:19.6]} 10.
Bg2 {[%clk 0:02:26.4]} 10... h5 {[%clk 0:02:18.1]} 11. Bf4 {[%clk 0:02:20.9]}
11... hxg4 {[%clk 0:02:16.6]} 12. hxg4 {[%clk 0:02:21.8]} 12... Rxh1+ {[%clk
0:02:16.1]} 13. Bxh1 {[%clk 0:02:22.7]} 13... Be4 {[%clk 0:02:12.8]} 14. Nbd2
{[%clk 0:02:22.7]} 14... Ng6 {[%clk 0:02:10.2]} 15. Bg3 {[%clk 0:02:22.9]} 15...
Bd3 {[%clk 0:01:37.2]} 16. Qb3 {[%clk 0:01:57.8]} 16... a5 {[%clk 0:01:14.1]}
17. O-O-O {[%clk 0:01:51.4]} 17... axb4 {[%clk 0:01:02.1]} 18. cxb4 {[%clk
0:01:50.8]} 18... Bb5 {[%clk 0:01:02.7]} 19. Qb2 {[%clk 0:01:20.6]} 19... b6
{[%clk 0:00:47.5]} 20. Nb3 {[%clk 0:01:13]} 20... Nxb4 {[%clk 0:00:46.9]} 21.
Nbd4 {[%clk 0:01:12.6]} 21... Nd3+ {[%clk 0:00:23.6]} 22. Rxd3 {[%clk
0:01:12.8]} 22... Bxd3 {[%clk 0:00:24.5]} 23. Qc3 {[%clk 0:01:01.8]} 23... Bc4
{[%clk 0:00:16.7]} 24. c6 {[%clk 0:00:53.9]} 24... Rxa2 {[%clk 0:00:15.2]} 25.
Nd2 {[%clk 0:00:50.8]} 25... Ba3+ {[%clk 0:00:12.8]} 26. Kd1 {[%clk 0:00:50.6]}
26... Bb2 {[%clk 0:00:13.1]} 27. Qb4 {[%clk 0:00:50.3]} 27... Bxd4 {[%clk
0:00:09.6]} 28. Nxc4 {[%clk 0:00:30.2]} 28... dxc4 {[%clk 0:00:09.2]} 29. Ke1
{[%clk 0:00:29.4]} 29... Ra1+ {[%clk 0:00:07.5]} 30. Ke2 {[%clk 0:00:28.7]}
30... Rxh1 {[%clk 0:00:08.1]} 31. Qb5 {[%clk 0:00:27.4]} 31... Qc7 {[%clk
0:00:06.4]} 32. Qxc4 {[%clk 0:00:26.6]} 32... Bxe5 {[%clk 0:00:06.3]} 33. Qa4
{[%clk 0:00:25.1]} 33... Bxg3 {[%clk 0:00:05]} 34. fxg3 {[%clk 0:00:25.5]} 34...
Rh2+ {[%clk 0:00:05.2]} 35. Kf3 {[%clk 0:00:25.8]} 35... Rd2 {[%clk 0:00:04.8]}
36. Qa8+ {[%clk 0:00:24.7]} 36... Ke7 {[%clk 0:00:05.1]} 37. Ke3 {[%clk
0:00:23]} 37... Rd6 {[%clk 0:00:05.2]} 38. Qg8 {[%clk 0:00:22.6]} 38... Rxc6
{[%clk 0:00:05.2]} 39. Qxg7 {[%clk 0:00:22.7]} 39... Qe5+ {[%clk 0:00:05.7]} 40.
Qxe5 {[%clk 0:00:22.5]} 40... Nxe5 {[%clk 0:00:06.6]} 41. Kf4 {[%clk 0:00:23.2]}
41... Ng6+ {[%clk 0:00:06.6]} 42. Kg5 {[%clk 0:00:23.5]} 42... Rc5+ {[%clk
0:00:06.5]} 43. Kh6 {[%clk 0:00:24.4]} 43... Ne5 {[%clk 0:00:07.1]} 44. g5
{[%clk 0:00:25.3]} 44... Ng4+ {[%clk 0:00:07.3]} 45. Kh5 {[%clk 0:00:25.9]}
45... f6 {[%clk 0:00:06.9]} 46. Kg6 {[%clk 0:00:21.5]} 46... Rxg5+ {[%clk
0:00:07.1]} 47. Kh7 {[%clk 0:00:22.4]} 47... Kf7 {[%clk 0:00:05.4]} 48. Kh8
{[%clk 0:00:22.9]} 48... Rh5# {[%clk 0:00:06.3]} 0-1

[Event "Early-Titled-Tuesday-Blitz-March-19-2024"]
[Site "Chess.com"]
[Date "2024.03.19"]
[Round "4"]
[White "HelvertHernandez"]
[Black "Jahonas"]
[Result "1/2-1/2"]
[WhiteElo "2035"]
[BlackElo "2341"]
[TimeControl "180+1"]
[EndTime "8:40:22 PDT"]
[Termination "Game drawn by repetition"]

1. e4 {[%clk 0:03:00.9]} 1... e5 {[%clk 0:02:59.7]} 2. Nf3 {[%clk 0:03:00.1]}
2... Nf6 {[%clk 0:03:00.1]} 3. Nc3 {[%clk 0:02:58.8]} 3... Nc6 {[%clk
0:02:59.7]} 4. d4 {[%clk 0:02:58.6]} 4... exd4 {[%clk 0:02:59.2]} 5. Nxd4 {[%clk
0:02:59.4]} 5... Nxd4 {[%clk 0:02:55.7]} 6. Qxd4 {[%clk 0:02:58.3]} 6... d6
{[%clk 0:02:54.9]} 7. Bg5 {[%clk 0:02:57.1]} 7... Be7 {[%clk 0:02:55.1]} 8.
O-O-O {[%clk 0:02:56.7]} 8... h6 {[%clk 0:02:53.5]} 9. Bh4 {[%clk 0:02:54.3]}
9... Be6 {[%clk 0:02:53.1]} 10. f4 {[%clk 0:02:51.2]} 10... O-O {[%clk 0:02:50]}
11. Bc4 {[%clk 0:02:41.1]} 11... Bxc4 {[%clk 0:02:49.3]} 12. Qxc4 {[%clk
0:02:41]} 12... c6 {[%clk 0:02:28.9]} 13. Qb3 {[%clk 0:02:23.7]} 13... Qc7
{[%clk 0:02:21.3]} 14. Rhe1 {[%clk 0:02:21.3]} 14... Rad8 {[%clk 0:02:04.4]} 15.
h3 {[%clk 0:02:20.2]} 15... Rfe8 {[%clk 0:02:00.5]} 16. g4 {[%clk 0:02:19.4]}
16... Nd7 {[%clk 0:01:55.1]} 17. Bg3 {[%clk 0:02:06.7]} 17... Nc5 {[%clk
0:01:52.7]} 18. Qc4 {[%clk 0:02:03.3]} 18... b5 {[%clk 0:01:50.2]} 19. Qd4
{[%clk 0:01:53.1]} 19... Ne6 {[%clk 0:01:42.2]} 20. Qe3 {[%clk 0:01:50.4]} 20...
b4 {[%clk 0:01:34.4]} 21. Ne2 {[%clk 0:01:49.6]} 21... Qa5 {[%clk 0:01:32.2]}
22. Kb1 {[%clk 0:01:46.9]} 22... Nc5 {[%clk 0:01:29.8]} 23. e5 {[%clk
0:01:36.8]} 23... Bf8 {[%clk 0:01:27.7]} 24. Nd4 {[%clk 0:01:33.9]} 24... dxe5
{[%clk 0:01:19.4]} 25. Nxc6 {[%clk 0:01:30]} 25... Rxd1+ {[%clk 0:01:18.7]} 26.
Rxd1 {[%clk 0:01:28.3]} 26... Qc7 {[%clk 0:01:03.4]} 27. Nxb4 {[%clk 0:01:17.5]}
27... Na4 {[%clk 0:00:50.8]} 28. Qb3 {[%clk 0:01:11.1]} 28... exf4 {[%clk
0:00:42]} 29. Bf2 {[%clk 0:01:04.8]} 29... Nc5 {[%clk 0:00:39.2]} 30. Qc4 {[%clk
0:01:01.4]} 30... Rc8 {[%clk 0:00:34.6]} 31. Nd3 {[%clk 0:00:54.8]} 31... Nxd3
{[%clk 0:00:33.4]} 32. Qxc7 {[%clk 0:00:47.4]} 32... Rxc7 {[%clk 0:00:32.1]} 33.
Rxd3 {[%clk 0:00:47.2]} 33... f6 {[%clk 0:00:26.8]} 34. b3 {[%clk 0:00:45.8]}
34... Kf7 {[%clk 0:00:26.3]} 35. c4 {[%clk 0:00:45.5]} 35... g5 {[%clk
0:00:24.5]} 36. Kb2 {[%clk 0:00:41.4]} 36... Ke6 {[%clk 0:00:24.1]} 37. a3
{[%clk 0:00:41.2]} 37... Bc5 {[%clk 0:00:24]} 38. Bxc5 {[%clk 0:00:34.3]} 38...
Rxc5 {[%clk 0:00:24.1]} 39. Kc3 {[%clk 0:00:34.7]} 39... f5 {[%clk 0:00:24]} 40.
b4 {[%clk 0:00:34.8]} 40... Re5 {[%clk 0:00:23.9]} 41. c5 {[%clk 0:00:32.6]}
41... fxg4 {[%clk 0:00:23.8]} 42. hxg4 {[%clk 0:00:31.4]} 42... Re1 {[%clk
0:00:21.6]} 43. Kd2 {[%clk 0:00:25.9]} 43... Rg1 {[%clk 0:00:20.3]} 44. c6
{[%clk 0:00:25.6]} 44... Rg2+ {[%clk 0:00:18.5]} 45. Kc3 {[%clk 0:00:24.1]}
45... Rg3 {[%clk 0:00:17.4]} 46. b5 {[%clk 0:00:13.1]} 46... Rxd3+ {[%clk
0:00:15.7]} 47. Kxd3 {[%clk 0:00:12.3]} 47... Kd6 {[%clk 0:00:16.2]} 48. Ke4
{[%clk 0:00:11.9]} 48... Kc7 {[%clk 0:00:15.8]} 49. a4 {[%clk 0:00:12.2]} 49...
Kb6 {[%clk 0:00:15.8]} 50. Kf3 {[%clk 0:00:12.5]} 50... a6 {[%clk 0:00:15.6]}
51. Kg2 {[%clk 0:00:11.3]} 51... axb5 {[%clk 0:00:15.6]} 52. axb5 {[%clk
0:00:11.6]} 52... Kc7 {[%clk 0:00:16.3]} 53. Kf3 {[%clk 0:00:11.8]} 53... Kd6
{[%clk 0:00:16.7]} 54. Kg2 {[%clk 0:00:12]} 54... Kc7 {[%clk 0:00:17.1]} 55. Kf3
{[%clk 0:00:12.3]} 55... Kd6 {[%clk 0:00:17.4]} 56. Kg2 {[%clk 0:00:12.2]} 56...
Kc7 {[%clk 0:00:17.2]} 1/2-1/2

[Event "Early-Titled-Tuesday-Blitz-March-19-2024"]
[Site "Chess.com"]
[Date "2024.03.19"]
[Round "4"]
[White "IMchanged"]
[Black "whiteglovethief"]
[Result "1-0"]
[WhiteElo "2685"]
[BlackElo "2448"]
[TimeControl "180+1"]
[EndTime "8:40:23 PDT"]
[Termination "IMchanged won on time"]

1. e4 {[%clk 0:03:00.9]} 1... e6 {[%clk 0:03:00.1]} 2. d4 {[%clk 0:03:00.4]}
2... d5 {[%clk 0:02:39.1]} 3. e5 {[%clk 0:02:59.6]} 3... c5 {[%clk 0:02:38]} 4.
c3 {[%clk 0:03:00.3]} 4... Nc6 {[%clk 0:02:38.5]} 5. Nf3 {[%clk 0:03:00.8]} 5...
Bd7 {[%clk 0:02:39.1]} 6. Bd3 {[%clk 0:02:57.2]} 6... cxd4 {[%clk 0:02:37.5]} 7.
cxd4 {[%clk 0:02:57]} 7... Bb4+ {[%clk 0:02:37.2]} 8. Nc3 {[%clk 0:02:54.8]}
8... Nge7 {[%clk 0:02:37.2]} 9. O-O {[%clk 0:02:54.4]} 9... h6 {[%clk
0:02:35.8]} 10. a3 {[%clk 0:02:51.4]} 10... Bxc3 {[%clk 0:02:35.5]} 11. bxc3
{[%clk 0:02:52.1]} 11... O-O {[%clk 0:02:35.4]} 12. Bc2 {[%clk 0:02:46.3]} 12...
f5 {[%clk 0:02:31.5]} 13. exf6 {[%clk 0:02:44.7]} 13... Rxf6 {[%clk 0:02:31.5]}
14. Qd3 {[%clk 0:02:44.6]} 14... Ng6 {[%clk 0:02:28.2]} 15. Re1 {[%clk
0:02:38.6]} 15... Rc8 {[%clk 0:02:22.4]} 16. Ne5 {[%clk 0:02:37.9]} 16... Ncxe5
{[%clk 0:02:12.3]} 17. dxe5 {[%clk 0:02:37.9]} 17... Rf5 {[%clk 0:02:12.4]} 18.
Qg3 {[%clk 0:02:38.1]} 18... Ne7 {[%clk 0:01:49.1]} 19. Bxh6 {[%clk 0:02:32.1]}
19... Rf7 {[%clk 0:01:36.4]} 20. Bg5 {[%clk 0:02:30.6]} 20... Qa5 {[%clk
0:01:31.3]} 21. Bxe7 {[%clk 0:02:06.8]} 21... Rxe7 {[%clk 0:01:32.2]} 22. Qg6
{[%clk 0:02:07.1]} 22... Rxc3 {[%clk 0:01:31.2]} 23. Qh7+ {[%clk 0:02:06.9]}
23... Kf8 {[%clk 0:01:31.5]} 24. Bg6 {[%clk 0:02:07.5]} 24... Rf7 {[%clk
0:01:27]} 25. Qh8+ {[%clk 0:01:51.2]} 25... Ke7 {[%clk 0:01:27.2]} 26. Qh4+
{[%clk 0:01:51.9]} 26... Kf8 {[%clk 0:01:27.5]} 27. Bxf7 {[%clk 0:01:47.2]}
27... Kxf7 {[%clk 0:01:28.4]} 28. a4 {[%clk 0:01:40.3]} 28... Rc4 {[%clk
0:01:08.3]} 29. Qh5+ {[%clk 0:01:39.8]} 29... Kg8 {[%clk 0:01:03.6]} 30. Re3
{[%clk 0:01:35.3]} 30... Qxa4 {[%clk 0:01:00.8]} 31. Rf1 {[%clk 0:01:29.1]}
31... Rh4 {[%clk 0:00:55.6]} 32. Qg5 {[%clk 0:01:27.7]} 32... Rg4 {[%clk
0:00:47]} 33. Qd8+ {[%clk 0:01:26.9]} 33... Be8 {[%clk 0:00:47.2]} 34. h3 {[%clk
0:01:22.5]} 34... Rf4 {[%clk 0:00:43.2]} 35. Rg3 {[%clk 0:01:19]} 35... Qd7
{[%clk 0:00:35.9]} 36. Qb8 {[%clk 0:01:17.2]} 36... a5 {[%clk 0:00:33.6]} 37.
Rc1 {[%clk 0:01:17]} 37... Rc4 {[%clk 0:00:32.1]} 38. Re1 {[%clk 0:00:58.1]}
38... a4 {[%clk 0:00:27]} 39. Rf3 {[%clk 0:00:52.8]} 39... b5 {[%clk 0:00:18.5]}
40. Rb1 {[%clk 0:00:53.1]} 40... Kh7 {[%clk 0:00:14.8]} 41. Rf8 {[%clk
0:00:52.9]} 41... Rc8 {[%clk 0:00:11.4]} 42. Qb6 {[%clk 0:00:48.8]} 42... Bg6
{[%clk 0:00:11.6]} 43. Rxc8 {[%clk 0:00:47.7]} 43... Qxc8 {[%clk 0:00:10.6]} 44.
Ra1 {[%clk 0:00:44.4]} 44... Qc3 {[%clk 0:00:09.7]} 45. Rf1 {[%clk 0:00:44.7]}
45... b4 {[%clk 0:00:09.8]} 46. Qxe6 {[%clk 0:00:43.5]} 46... b3 {[%clk
0:00:09.7]} 47. h4 {[%clk 0:00:38.8]} 47... b2 {[%clk 0:00:09.3]} 48. Qb6 {[%clk
0:00:36.5]} 48... Qc4 {[%clk 0:00:06.8]} 49. Re1 {[%clk 0:00:34.6]} 49... a3
{[%clk 0:00:05.8]} 50. h5 {[%clk 0:00:33.6]} 50... Bxh5 {[%clk 0:00:05]} 51. e6
{[%clk 0:00:32.1]} 51... a2 {[%clk 0:00:05.2]} 52. Qxb2 {[%clk 0:00:31.2]} 52...
d4 {[%clk 0:00:03.5]} 53. e7 {[%clk 0:00:30.3]} 53... Bf7 {[%clk 0:00:02.8]} 54.
e8=Q {[%clk 0:00:29.3]} 54... Bxe8 {[%clk 0:00:03.2]} 55. Rxe8 {[%clk 0:00:30]}
55... d3 {[%clk 0:00:01.4]} 56. Rd8 {[%clk 0:00:29.7]} 1-0

[Event "Early-Titled-Tuesday-Blitz-March-19-2024"]
[Site "Chess.com"]
[Date "2024.03.19"]
[Round "4"]
[White "Blitzstream"]
[Black "ajedrezsinlimites"]
[Result "1/2-1/2"]
[WhiteElo "2826"]
[BlackElo "2613"]
[TimeControl "180+1"]
[EndTime "8:40:24 PDT"]
[Termination "Game drawn by repetition"]

1. e4 {[%clk 0:03:00.9]} 1... c6 {[%clk 0:02:58.9]} 2. c4 {[%clk 0:03:00.7]}
2... d5 {[%clk 0:02:51.3]} 3. cxd5 {[%clk 0:03:01.6]} 3... cxd5 {[%clk
0:02:49.8]} 4. exd5 {[%clk 0:03:02.5]} 4... Nf6 {[%clk 0:02:49]} 5. Nc3 {[%clk
0:03:02.6]} 5... Nxd5 {[%clk 0:02:48.8]} 6. Nf3 {[%clk 0:03:02.9]} 6... Nc6
{[%clk 0:02:48.1]} 7. Bc4 {[%clk 0:03:03.1]} 7... e6 {[%clk 0:02:46.8]} 8. O-O
{[%clk 0:03:03]} 8... Be7 {[%clk 0:02:46.4]} 9. d4 {[%clk 0:03:03.5]} 9... O-O
{[%clk 0:02:45]} 10. Re1 {[%clk 0:03:04.1]} 10... Bf6 {[%clk 0:02:41.4]} 11. Ne4
{[%clk 0:03:02.8]} 11... Bd7 {[%clk 0:02:36.6]} 12. Nxf6+ {[%clk 0:02:52.6]}
12... Nxf6 {[%clk 0:02:34.5]} 13. Bg5 {[%clk 0:02:51.8]} 13... h6 {[%clk
0:02:33.5]} 14. Bh4 {[%clk 0:02:51]} 14... Re8 {[%clk 0:02:33.9]} 15. Ne5 {[%clk
0:02:40.4]} 15... g5 {[%clk 0:02:26.3]} 16. Bg3 {[%clk 0:02:37.6]} 16... Nxe5
{[%clk 0:02:23.3]} 17. Bxe5 {[%clk 0:02:12.8]} 17... Bc6 {[%clk 0:02:20.7]} 18.
h4 {[%clk 0:02:12.6]} 18... Nd7 {[%clk 0:02:16]} 19. Bh2 {[%clk 0:01:39.2]}
19... Qf6 {[%clk 0:02:12.6]} 20. Qg4 {[%clk 0:01:25]} 20... Qg6 {[%clk
0:02:03.8]} 21. Rad1 {[%clk 0:01:17.3]} 21... Nf6 {[%clk 0:02:02.8]} 22. Qh3
{[%clk 0:01:04.2]} 22... gxh4 {[%clk 0:01:57.6]} 23. Bd3 {[%clk 0:00:48.3]}
23... Qg4 {[%clk 0:01:55.8]} 24. Qxg4+ {[%clk 0:00:44.8]} 24... Nxg4 {[%clk
0:01:55.7]} 25. Bf4 {[%clk 0:00:45.3]} 25... h5 {[%clk 0:01:44.1]} 26. f3 {[%clk
0:00:44.2]} 26... Nf6 {[%clk 0:01:42.9]} 27. Kf2 {[%clk 0:00:39.9]} 27... Nd5
{[%clk 0:01:39.2]} 28. Bd2 {[%clk 0:00:35.8]} 28... Kg7 {[%clk 0:01:36.4]} 29.
Rh1 {[%clk 0:00:35.4]} 29... Rh8 {[%clk 0:01:36.3]} 30. Rxh4 {[%clk 0:00:35.5]}
30... f5 {[%clk 0:01:28.3]} 31. Rdh1 {[%clk 0:00:34.4]} 31... Nf6 {[%clk
0:01:23.7]} 32. Bf4 {[%clk 0:00:33.7]} 32... Bd5 {[%clk 0:01:23]} 33. b3 {[%clk
0:00:32.4]} 33... Kf7 {[%clk 0:01:18.8]} 34. Be5 {[%clk 0:00:32.2]} 34... Rhg8
{[%clk 0:01:03.8]} 35. Bxf6 {[%clk 0:00:30]} 35... Kxf6 {[%clk 0:01:04.7]} 36.
Rxh5 {[%clk 0:00:30.6]} 36... Rg7 {[%clk 0:01:04]} 37. Rh6+ {[%clk 0:00:30.4]}
37... Ke7 {[%clk 0:01:04.3]} 38. Rh7 {[%clk 0:00:29]} 38... Rg8 {[%clk
0:01:03.2]} 39. Ke3 {[%clk 0:00:25.4]} 39... Kd6 {[%clk 0:00:59.2]} 40. Rxg7
{[%clk 0:00:25.3]} 40... Rxg7 {[%clk 0:01:00.1]} 41. Rh2 {[%clk 0:00:25.7]}
41... a6 {[%clk 0:00:51.9]} 42. Kf4 {[%clk 0:00:24.7]} 42... b5 {[%clk 0:00:51]}
43. g3 {[%clk 0:00:23.7]} 43... Rc7 {[%clk 0:00:49.8]} 44. Rc2 {[%clk
0:00:20.7]} 44... Rg7 {[%clk 0:00:48.2]} 45. Rh2 {[%clk 0:00:20.3]} 45... Rc7
{[%clk 0:00:47.8]} 46. Rc2 {[%clk 0:00:20.4]} 46... Rg7 {[%clk 0:00:47]} 47. b4
{[%clk 0:00:20.3]} 47... Rg8 {[%clk 0:00:43.8]} 48. a3 {[%clk 0:00:19.3]} 48...
Rh8 {[%clk 0:00:43.7]} 49. g4 {[%clk 0:00:16.9]} 49... Rh3 {[%clk 0:00:38.8]}
50. Be2 {[%clk 0:00:17.1]} 50... fxg4 {[%clk 0:00:34.8]} 51. fxg4 {[%clk
0:00:18]} 51... Rh2 {[%clk 0:00:35.1]} 52. g5 {[%clk 0:00:11.4]} 52... Rf2+
{[%clk 0:00:31.7]} 53. Ke3 {[%clk 0:00:10.6]} 53... Rg2 {[%clk 0:00:31.5]} 54.
Kf4 {[%clk 0:00:10.4]} 54... Rf2+ {[%clk 0:00:31.8]} 55. Ke3 {[%clk 0:00:10.5]}
55... Rg2 {[%clk 0:00:32]} 56. Kf4 {[%clk 0:00:02.5]} 56... Rf2+ {[%clk
0:00:19.1]} 1/2-1/2

[Event "Early-Titled-Tuesday-Blitz-March-19-2024"]
[Site "Chess.com"]
[Date "2024.03.19"]
[Round "4"]
[White "Rogarcia1"]
[Black "Alina_Gumerovna"]
[Result "1-0"]
[WhiteElo "2494"]
[BlackElo "2167"]
[TimeControl "180+1"]
[EndTime "8:40:24 PDT"]
[Termination "Rogarcia1 won on time"]

1. e4 {[%clk 0:03:00.9]} 1... e6 {[%clk 0:02:59.5]} 2. d4 {[%clk 0:03:00.5]}
2... d5 {[%clk 0:02:59.9]} 3. Nc3 {[%clk 0:03:00.8]} 3... Bb4 {[%clk 0:03:00.1]}
4. Ne2 {[%clk 0:03:00.7]} 4... dxe4 {[%clk 0:02:53.5]} 5. a3 {[%clk 0:02:59.4]}
5... Bxc3+ {[%clk 0:02:53.7]} 6. Nxc3 {[%clk 0:02:59.5]} 6... Nf6 {[%clk
0:02:54.6]} 7. Bg5 {[%clk 0:02:56.9]} 7... h6 {[%clk 0:02:50.9]} 8. Bxf6 {[%clk
0:02:55.6]} 8... Qxf6 {[%clk 0:02:51.8]} 9. Nxe4 {[%clk 0:02:55.9]} 9... Qe7
{[%clk 0:02:50.4]} 10. Qd3 {[%clk 0:02:55.3]} 10... O-O {[%clk 0:02:46.2]} 11.
O-O-O {[%clk 0:02:54.4]} 11... Nd7 {[%clk 0:02:38.1]} 12. g3 {[%clk 0:02:54.1]}
12... b6 {[%clk 0:02:30.5]} 13. Bg2 {[%clk 0:02:54.1]} 13... Bb7 {[%clk
0:02:30.3]} 14. Nf6+ {[%clk 0:02:36.6]} 14... Nxf6 {[%clk 0:02:29]} 15. Bxb7
{[%clk 0:02:37.3]} 15... Rab8 {[%clk 0:02:29]} 16. Bf3 {[%clk 0:02:35.5]} 16...
c5 {[%clk 0:02:28.8]} 17. dxc5 {[%clk 0:02:32.7]} 17... Qxc5 {[%clk 0:02:29.7]}
18. Kb1 {[%clk 0:02:33.2]} 18... Rfc8 {[%clk 0:02:29.1]} 19. Rd2 {[%clk
0:02:29.2]} 19... b5 {[%clk 0:02:27.9]} 20. Rhd1 {[%clk 0:02:13.6]} 20... b4
{[%clk 0:02:26.3]} 21. a4 {[%clk 0:02:13.1]} 21... b3 {[%clk 0:02:23.9]} 22.
cxb3 {[%clk 0:02:13.1]} 22... Qb4 {[%clk 0:02:17.1]} 23. Rc2 {[%clk 0:02:00.4]}
23... Rxc2 {[%clk 0:02:01]} 24. Qxc2 {[%clk 0:02:00.4]} 24... g6 {[%clk
0:01:52.6]} 25. Rd3 {[%clk 0:01:57.8]} 25... e5 {[%clk 0:01:45.4]} 26. Rc3
{[%clk 0:01:50.8]} 26... e4 {[%clk 0:01:43]} 27. Be2 {[%clk 0:01:47.8]} 27...
Nd5 {[%clk 0:01:36.2]} 28. Rc8+ {[%clk 0:01:46.6]} 28... Rxc8 {[%clk 0:01:34.6]}
29. Qxc8+ {[%clk 0:01:46.6]} 29... Kg7 {[%clk 0:01:34.6]} 30. Bd1 {[%clk
0:01:15.5]} 30... Qd4 {[%clk 0:01:24.7]} 31. Qc2 {[%clk 0:01:08.2]} 31... a5
{[%clk 0:01:20.4]} 32. Qe2 {[%clk 0:00:55]} 32... Nb4 {[%clk 0:00:36.7]} 33. Qe1
{[%clk 0:00:19.4]} 33... Nd3 {[%clk 0:00:32]} 34. Qc3 {[%clk 0:00:19.2]} 34...
Qxc3 {[%clk 0:00:29.8]} 35. bxc3 {[%clk 0:00:19.6]} 35... Nxf2 {[%clk
0:00:30.7]} 36. Be2 {[%clk 0:00:20]} 36... e3 {[%clk 0:00:19.9]} 37. b4 {[%clk
0:00:20.4]} 37... Ne4 {[%clk 0:00:17.6]} 38. Kc2 {[%clk 0:00:19.7]} 38... f5
{[%clk 0:00:09.5]} 39. bxa5 {[%clk 0:00:19.1]} 39... Nd6 {[%clk 0:00:06.3]} 40.
a6 {[%clk 0:00:19.2]} 40... Nc8 {[%clk 0:00:06.5]} 41. c4 {[%clk 0:00:19.6]}
41... Kf6 {[%clk 0:00:05.8]} 42. Kd3 {[%clk 0:00:20.1]} 42... Ke5 {[%clk
0:00:05.4]} 43. Kxe3 {[%clk 0:00:20.6]} 43... Na7 {[%clk 0:00:05.4]} 44. c5
{[%clk 0:00:20.7]} 44... Kd5 {[%clk 0:00:05.3]} 45. Bb5 {[%clk 0:00:21.1]} 45...
Kxc5 {[%clk 0:00:04.9]} 46. Kf4 {[%clk 0:00:21.7]} 46... Kb6 {[%clk 0:00:02]}
47. Ke5 {[%clk 0:00:22.1]} 1-0